bitfinex-derivatives/quotes_BTCF0:USTF0_20220102
["timestamp","ask_amount","ask_price","bid_price","bid_amount"]
[1641098526435,0.14033567,47337.0,47329.0,0.02112634]
[1641098526835,0.14033567,47337.0,47330.0,0.01200482]
[1641098528640,0.14033567,47337.0,47330.0,0.10171482]
[1641098529239,0.14033567,47337.0,47331.0,0.01200482]
[1641098535754,0.14033567,47337.0,47331.0,0.60803731]
[1641098536153,0.14033567,47337.0,47332.0,0.01200482]
[1641098536955,0.5,47332.0,47329.0,0.83436469]
[1641098537157,0.60853016,47328.0,47323.0,0.95894927]
[1641098537357,1.10853016,47328.0,47295.0,0.60893355]
[1641098537556,1.10853016,47328.0,47291.0,1.79987527]
[1641098537557,0.98,47324.0,47313.0,0.70529418]
[1641098537756,0.98,47324.0,47302.0,1.63994704]
[1641098537960,1.288,47303.0,47302.0,1.48154704]
[1641098538260,1.37407389,47303.0,47295.0,1.43877193]
[1641098538457,1.688,47296.0,47295.0,0.85395175]
[1641098538663,1.688,47296.0,47295.0,0.84935175]
[1641098538664,2.11000701,47296.0,47295.0,0.84935175]
[1641098538858,2.11000701,47296.0,47295.0,0.80295175]
[1641098539056,2.53240701,47296.0,47295.0,0.03109544]
[1641098539257,2.63541416,47296.0,47288.0,1.42696959]
[1641098539457,1.108,47288.0,47267.0,0.47546491]
[1641098539659,0.18,47269.0,47267.0,0.47546491]
[1641098539857,0.001,47268.0,47267.0,0.47546491]
[1641098540059,1.109,47268.0,47267.0,0.44346491]
[1641098540257,1.109,47268.0,47267.0,0.43896491]
[1641098540258,1.13016345,47268.0,47267.0,0.43896491]
[1641098540461,1.63016345,47268.0,47267.0,0.43896491]
[1641098540660,1.63016345,47268.0,47252.0,0.29465914]
[1641098540661,3.41000701,47268.0,47252.0,0.29465914]
[1641098540861,2.82900701,47268.0,47252.0,0.15476449]
[1641098541058,2.82900701,47268.0,47252.0,0.11916449]
[1641098541258,0.18,47253.0,47252.0,0.10066449]
[1641098541459,0.18,47253.0,47252.0,0.06136449]
[1641098541664,0.18,47253.0,47250.0,1.40046959]
[1641098541859,0.18,47253.0,47250.0,1.14363408]
[1641098542063,0.18,47253.0,47250.0,0.15251152]
[1641098542260,0.18,47253.0,47239.0,1.66256725]
[1641098542461,0.18,47253.0,47218.0,0.55429951]
[1641098542661,0.9306,47251.0,47202.0,1.90183162]
[1641098542862,0.9306,47251.0,47202.0,1.30085789]
[1641098543064,1.7604,47251.0,47202.0,0.53777777]
[1641098543263,1.7604,47251.0,47202.0,0.44287777]
[1641098543466,1.9384,47240.0,47202.0,0.22497933]
[1641098543666,0.42366611,47207.0,47202.0,0.0963958]
[1641098543970,0.54876223,47203.0,47193.0,1.19617664]
[1641098544165,1.108,47202.0,47193.0,1.11327664]
[1641098544364,1.108,47202.0,47193.0,1.22987664]
[1641098544565,0.000273,47201.0,47193.0,1.04987664]
[1641098544765,0.14033567,47194.0,47193.0,1.04987664]
[1641098544965,0.14033567,47194.0,47144.0,0.314]
[1641098545165,0.045,47182.0,47144.0,0.314]
[1641098545366,0.12,47176.0,47144.0,0.293]
[1641098545566,7.3e-05,47181.0,47144.0,0.293]
[1641098545765,0.1906,47173.0,47145.0,0.01204686]
[1641098545980,0.405073,47181.0,47145.0,0.01204686]
[1641098546180,0.02120752,47165.0,47155.0,0.4]
[1641098546479,0.81644891,47167.0,47164.0,0.535]
[1641098546679,1.28299114,47173.0,47166.0,0.27533567]
[1641098546879,1.28299114,47173.0,47166.0,0.14033567]
[1641098547081,1.28299114,47173.0,47172.0,0.135]
[1641098547280,1.42082885,47177.0,47172.0,0.135]
[1641098547580,1.42082885,47177.0,47160.0,0.14033567]
[1641098547581,0.58296759,47163.0,47147.0,0.4]
[1641098547781,0.58296759,47163.0,47162.0,0.135]
[1641098547980,1.28252869,47170.0,47162.0,0.536]
[1641098548181,1.28252869,47170.0,47151.0,0.8]
[1641098548182,0.14033567,47180.0,47151.0,0.8]
[1641098548381,0.14033567,47180.0,47154.0,0.135]
[1641098548583,0.14033567,47180.0,47147.0,2.45208895]
[1641098548781,0.14033567,47165.0,47156.0,0.02120367]
[1641098548981,0.14033567,47165.0,47164.0,0.135]
[1641098549680,0.14033567,47165.0,47152.0,0.4]
[1641098549881,0.14033567,47165.0,47150.0,0.09412967]
[1641098550086,0.14033567,47165.0,47159.0,0.4]
[1641098550280,0.14033567,47165.0,47162.0,0.4]
[1641098550680,0.14033567,47165.0,47159.0,0.4]
[1641098551887,1.51475948,47176.0,47164.0,0.42119916]
[1641098552085,0.02119563,47192.0,47175.0,0.02119382]
[1641098552286,3.07983407,47188.0,47181.0,0.4]
[1641098552487,3.07983407,47188.0,47184.0,0.4]
[1641098552688,0.18069768,47188.0,47187.0,0.54033567]
[1641098552889,0.02,47197.0,47187.0,0.63635497]
[1641098553089,0.02,47197.0,47190.0,0.4]
[1641098553486,0.02,47197.0,47188.0,0.009794]
[1641098553691,0.02,47197.0,47190.0,0.4]
[1641098553888,0.02,47197.0,47191.0,0.4]
[1641098554689,0.02,47197.0,47196.0,0.14033567]
[1641098555094,0.02,47197.0,47196.0,0.21168993]
[1641098556094,0.09004372,47192.0,47191.0,0.4]
[1641098556297,0.09004372,47192.0,47187.0,0.16152497]
[1641098556298,0.15292372,47192.0,47187.0,0.14033567]
[1641098556494,0.15292372,47192.0,47188.0,0.09672968]
[1641098556795,0.14033567,47189.0,47179.0,0.14033567]
[1641098557393,0.14033567,47189.0,47176.0,1.64537727]
[1641098557693,0.14033567,47189.0,47180.0,0.1015244]
[1641098557895,0.14033567,47189.0,47175.0,0.409794]
[1641098558193,0.14033567,47189.0,47177.0,1.059714]
[1641098558393,0.14033567,47189.0,47175.0,0.409794]
[1641098558394,0.14033567,47189.0,47175.0,0.4]
[1641098558593,0.14033567,47189.0,47176.0,1.059703]
[1641098558796,0.14033567,47180.0,47175.0,0.4]
[1641098558995,0.14033567,47180.0,47179.0,0.02219324]
[1641098559294,0.14033567,47180.0,47167.0,0.1688]
[1641098559295,0.14033567,47180.0,47172.0,0.02119647]
[1641098559494,0.20173567,47180.0,47172.0,0.42119647]
[1641098560297,0.20173567,47180.0,47172.0,0.4]
[1641098560596,0.14033567,47180.0,47175.0,0.4]
[1641098560800,0.14033567,47180.0,47179.0,0.4]
[1641098561097,0.14033567,47189.0,47179.0,0.4]
[1641098561396,0.09004372,47192.0,47186.0,0.4]
[1641098561599,4.372e-05,47192.0,47191.0,0.401]
[1641098561797,0.0001,47197.0,47191.0,0.401]
[1641098561997,0.0001,47197.0,47196.0,0.401]
[1641098562196,0.0001,47197.0,47196.0,0.4919]
[1641098562396,0.0001,47197.0,47190.0,0.2112]
[1641098562597,0.0001,47197.0,47175.0,0.1057]
[1641098562796,0.0001,47197.0,47193.0,0.14033567]
[1641098564402,0.0001,47197.0,47176.0,0.07796]
[1641098564700,0.14033567,47189.0,47185.0,0.8]
[1641098564902,0.14033567,47189.0,47188.0,0.001]
[1641098565302,0.14033567,47189.0,47188.0,1.374046]
[1641098565503,0.14033567,47189.0,47188.0,1.1286678]
[1641098565702,0.14033567,47189.0,47188.0,1.1276678]
[1641098566506,0.89974618,47187.0,47186.0,0.000901]
[1641098566705,0.43314618,47187.0,47186.0,0.000901]
[1641098566905,0.14033567,47198.0,47186.0,0.3205]
[1641098567104,0.14033567,47198.0,47186.0,0.37768]
[1641098567307,0.14033567,47198.0,47186.0,0.06792]
[1641098567505,0.14033567,47198.0,47187.0,0.40036843]
[1641098568506,0.14033567,47198.0,47187.0,0.08458643]
[1641098568706,0.14033567,47193.0,47187.0,0.08458643]
[1641098569906,3.567e-05,47193.0,47187.0,0.25479925]
[1641098570309,3.567e-05,47193.0,47188.0,0.318801]
[1641098570708,0.14033567,47198.0,47187.0,0.08458643]
[1641098570909,0.15012967,47198.0,47187.0,0.08458643]
[1641098571108,0.15012967,47198.0,47188.0,0.19602978]
[1641098571810,0.15012967,47198.0,47187.0,0.08458643]
[1641098572416,0.15012967,47198.0,47185.0,0.02118893]
[1641098573011,0.14033567,47193.0,47186.0,0.319687]
[1641098573411,0.14033567,47193.0,47185.0,0.02118893]
[1641098573813,0.14033567,47193.0,47186.0,0.08723007]
[1641098575714,0.77985202,47181.0,47177.0,1.108]
[1641098575917,0.77985202,47181.0,47180.0,0.001]
[1641098576313,0.77985202,47181.0,47180.0,0.320891]
[1641098577716,0.77985202,47181.0,47180.0,0.34207993]
[1641098580217,1.49344835,47185.0,47181.0,0.38291303]
[1641098580417,1.11061493,47185.0,47184.0,1.909]
[1641098580621,0.97791493,47185.0,47184.0,2.0147]
[1641098580819,0.96231493,47185.0,47184.0,2.262111]
[1641098581019,0.96231493,47185.0,47184.0,2.54278234]
[1641098581320,1.41526972,47185.0,47184.0,1.50848224]
[1641098581620,1.41526972,47185.0,47184.0,0.60178224]
[1641098581819,0.009794,47193.0,47184.0,0.59694324]
[1641098582321,1.61288879,47202.0,47185.0,0.318262]
[1641098582519,1.61288879,47200.0,47185.0,0.318262]
[1641098582720,1.61288879,47200.0,47186.0,1.059467]
[1641098582920,0.14033567,47195.0,47191.0,0.02118593]
[1641098583318,0.14033567,47195.0,47192.0,0.001658]
[1641098583518,0.14033567,47195.0,47191.0,0.02118593]
[1641098583918,0.14033567,47195.0,47184.0,0.38637134]
[1641098584321,0.009794,47202.0,47185.0,0.316375]
[1641098584621,1.20426924,47201.0,47186.0,1.108]
[1641098584918,1.20426924,47201.0,47187.0,1.375101]
[1641098585119,0.009794,47202.0,47194.0,0.14033567]
[1641098585320,0.58,47195.0,47194.0,0.14033567]
[1641098585518,0.58,47195.0,47185.0,0.1057]
[1641098585519,0.653294,47195.0,47185.0,0.1057]
[1641098585719,0.073294,47195.0,47185.0,0.1057]
[1641098586119,0.073294,47195.0,47186.0,0.06240901]
[1641098586320,0.58,47191.0,47186.0,0.37874001]
[1641098586520,0.58,47187.0,47177.0,0.1057]
[1641098586721,0.76,47178.0,47177.0,0.1057]
[1641098586923,0.86968355,47178.0,47177.0,0.1057]
[1641098587139,1.15035489,47178.0,47166.0,0.09766099]
[1641098587321,0.58,47167.0,47161.0,0.14033567]
[1641098587520,0.58,47163.0,47161.0,0.14033567]
[1641098587923,0.58,47163.0,47152.0,0.14033567]
[1641098588125,0.58,47153.0,47152.0,0.14033567]
[1641098588323,0.27168,47153.0,47152.0,0.14033567]
[1641098588524,0.60967998,47153.0,47152.0,0.14033567]
[1641098590224,0.60967998,47153.0,47152.0,0.14133567]
[1641098590424,0.60967998,47153.0,47151.0,0.08878959]
[1641098591025,0.09168,47153.0,47151.0,0.08878959]
[1641098591227,1.28890057,47154.0,47151.0,0.08878959]
[1641098591426,1.28890057,47154.0,47152.0,0.319716]
[1641098591626,1.28890057,47153.0,47152.0,1.380105]
[1641098592027,1.28890057,47153.0,47152.0,1.060389]
[1641098592236,0.51799998,47156.0,47152.0,1.061389]
[1641098592426,0.51799998,47156.0,47152.0,1.060389]
[1641098592633,1.28890057,47157.0,47145.0,0.16154187]
[1641098592826,0.51799998,47150.0,47145.0,0.16154187]
[1641098593029,0.51799998,47150.0,47145.0,0.14033567]
[1641098593227,1.28890057,47154.0,47146.0,1.15518908]
[1641098593830,0.81946391,47147.0,47146.0,1.23242908]
[1641098594028,0.81946391,47147.0,47146.0,1.23342908]
[1641098594232,0.81946391,47147.0,47146.0,1.55147908]
[1641098594430,0.81946391,47147.0,47146.0,1.23242908]
[1641098594640,0.81946391,47147.0,47146.0,1.137741]
[1641098594845,0.35136496,47147.0,47146.0,1.060501]
[1641098595443,0.14033567,47160.0,47147.0,0.2112]
[1641098595643,1.28890057,47171.0,47159.0,0.02709717]
[1641098595844,1.28890057,47171.0,47159.0,0.09045717]
[1641098596043,1.28890057,47171.0,47167.0,0.00589981]
[1641098596247,0.17410019,47172.0,47167.0,0.00589981]
[1641098596444,0.17410019,47172.0,47161.0,0.00589981]
[1641098597044,0.17410019,47172.0,47171.0,0.14033567]
[1641098597645,0.2050963,47172.0,47171.0,0.14033567]
[1641098598447,0.2050963,47172.0,47166.0,0.14033567]
[1641098598648,0.18,47168.0,47166.0,0.14033567]
[1641098598849,0.17410019,47167.0,47166.0,0.14033567]
[1641098599048,0.009794,47166.0,47150.0,0.1688]
[1641098599249,0.35410019,47153.0,47145.0,0.14033567]
[1641098599449,0.07789,47153.0,47145.0,0.14033567]
[1641098599650,0.17410019,47152.0,47145.0,0.14033567]
[1641098599850,0.17410019,47161.0,47151.0,0.00589981]
[1641098600250,0.17410019,47161.0,47146.0,2.177113]
[1641098600251,0.18,47161.0,47152.0,0.318342]
[1641098600450,0.17410019,47154.0,47145.0,0.14033567]
[1641098600650,0.12,47154.0,47150.0,0.001]
[1641098600854,0.17410019,47156.0,47153.0,0.001]
[1641098601052,0.17410019,47159.0,47155.0,0.001]
[1641098601253,0.17410019,47156.0,47154.0,0.37698752]
[1641098601453,0.17410019,47159.0,47155.0,0.001]
[1641098601655,0.17410019,47156.0,47154.0,0.06082552]
[1641098601955,0.17410019,47156.0,47155.0,0.001]
[1641098603055,0.17410019,47156.0,47154.0,0.06082552]
[1641098604856,0.18,47155.0,47154.0,0.06082552]
[1641098605056,0.18,47155.0,47144.0,0.293]
[1641098605258,0.095234,47156.0,47150.0,0.001]
[1641098605455,0.17410019,47152.0,47144.0,0.31420652]
[1641098605656,0.095234,47156.0,47144.0,0.293]
[1641098605855,0.17410019,47147.0,47144.0,0.293]
[1641098606056,0.17410019,47147.0,47146.0,1.060434]
[1641098606256,0.17410019,47147.0,47146.0,1.15241507]
[1641098606657,0.35410019,47147.0,47146.0,0.09198107]
[1641098606858,0.14033567,47157.0,47146.0,0.00589981]
[1641098607158,0.14033567,47159.0,47156.0,0.02120041]
[1641098607359,0.14033567,47159.0,47158.0,0.00589981]
[1641098607558,0.34934828,47165.0,47158.0,0.02709606]
[1641098607764,0.34934828,47171.0,47161.0,0.00589981]
[1641098607959,0.34934828,47171.0,47166.0,0.001]
[1641098608158,0.34934828,47171.0,47170.0,0.001]
[1641098608361,0.14033567,47173.0,47170.0,0.001]
[1641098608558,0.81599412,47174.0,47172.0,0.001]
[1641098608759,0.35026229,47181.0,47173.0,0.02119365]
[1641098608959,0.35026229,47181.0,47173.0,0.33808365]
[1641098609258,0.35026229,47181.0,47174.0,0.1992982]
[1641098609457,0.35026229,47181.0,47174.0,0.5182862]
[1641098609660,0.95632979,47184.0,47178.0,0.02119153]
[1641098609861,0.17410019,47179.0,47178.0,0.08371153]
[1641098610058,0.14033567,47184.0,47178.0,0.08371153]
[1641098610263,0.14033567,47184.0,47179.0,0.0683471]
[1641098610460,0.31443586,47184.0,47179.0,0.08039026]
[1641098610663,0.31443586,47184.0,47180.0,0.316586]
[1641098610860,0.17410019,47183.0,47180.0,0.01204316]
[1641098611266,0.17410019,47183.0,47179.0,0.0683471]
[1641098611267,0.17410019,47183.0,47181.0,0.01204316]
[1641098612162,0.17410019,47183.0,47180.0,0.01204316]
[1641098612361,0.17410019,47183.0,47182.0,0.01204316]
[1641098612966,0.35410019,47183.0,47181.0,0.01204316]
[1641098613364,0.35410019,47183.0,47180.0,0.01204316]
[1641098613567,0.35410019,47183.0,47179.0,0.0683471]
[1641098613764,0.18,47183.0,47179.0,0.0683471]
[1641098613964,0.17410019,47180.0,47179.0,0.0683471]
[1641098614365,0.14033567,47184.0,47179.0,0.0683471]
[1641098614566,0.17410019,47183.0,47179.0,0.1402371]
[1641098615369,0.17410019,47183.0,47180.0,0.31622]
[1641098615568,0.14033567,47184.0,47180.0,0.31622]
[1641098615867,0.14033567,47184.0,47183.0,0.001]
[1641098616068,0.04890957,47189.0,47183.0,0.02808819]
[1641098616268,0.04890957,47192.0,47188.0,0.001]
[1641098616468,0.04890957,47192.0,47190.0,0.0211859]
[1641098616668,0.04890957,47192.0,47190.0,0.0997159]
[1641098616867,0.04890957,47192.0,47191.0,0.005023]
[1641098617068,0.81599412,47193.0,47191.0,0.70949844]
[1641098617269,0.17410019,47192.0,47191.0,0.78151968]
[1641098617468,0.17410019,47192.0,47191.0,0.35771558]
[1641098618269,0.17410019,47192.0,47191.0,0.29571557]
[1641098619571,0.17410019,47194.0,47191.0,0.29571557]
[1641098620971,0.35410019,47194.0,47191.0,0.29571557]
[1641098622171,0.17410019,47194.0,47191.0,0.29571557]
[1641098622974,0.009794,47193.0,47191.0,0.29571557]
[1641098623171,0.100574,47193.0,47191.0,0.29571557]
[1641098623470,0.09078,47193.0,47191.0,0.29571557]
[1641098623671,0.17410019,47192.0,47191.0,0.29571557]
[1641098623971,0.17410019,47192.0,47191.0,0.29671557]
[1641098625874,0.02,47197.0,47191.0,0.29671557]
[1641098626074,0.19410019,47197.0,47191.0,0.29571557]
[1641098626975,0.02,47197.0,47191.0,0.29571557]
[1641098627177,0.17410019,47192.0,47191.0,0.29571557]
[1641098627375,0.17410019,47192.0,47191.0,0.29671557]
[1641098628078,0.17410019,47192.0,47191.0,0.29571557]
[1641098628276,0.23447019,47192.0,47191.0,0.29571557]
[1641098628680,0.41447019,47192.0,47191.0,0.07704424]
[1641098628879,0.44545839,47192.0,47175.0,0.15607134]
[1641098629075,0.44545839,47192.0,47172.0,0.15126007]
[1641098629076,0.18,47177.0,47172.0,0.13006587]
[1641098629277,0.17410019,47173.0,47172.0,0.27040154]
[1641098629477,0.17410019,47173.0,47172.0,0.27140154]
[1641098629676,0.17410019,47173.0,47172.0,0.001]
[1641098630278,0.17410019,47173.0,47170.0,0.09350996]
[1641098630478,0.18,47171.0,47167.0,0.14033567]
[1641098630683,0.17410019,47169.0,47167.0,0.14033567]
[1641098631084,0.18,47168.0,47151.0,0.73295722]
[1641098631284,0.17410019,47169.0,47151.0,0.73295722]
[1641098631285,0.18,47161.0,47153.0,0.14033567]
[1641098631481,0.17410019,47154.0,47153.0,0.14033567]
[1641098631682,0.17410019,47154.0,47153.0,0.14133567]
[1641098632090,0.25819,47161.0,47153.0,0.14133567]
[1641098632281,0.17410019,47154.0,47153.0,0.14033567]
[1641098632482,0.17410019,47154.0,47153.0,0.14133567]
[1641098633289,0.17410019,47154.0,47153.0,0.14033567]
[1641098633987,0.36389419,47154.0,47138.0,0.15619355]
[1641098634185,0.17410019,47145.0,47134.0,0.02121103]
[1641098634385,0.08579,47145.0,47134.0,0.02121103]
[1641098634786,0.08579,47145.0,47134.0,0.02711084]
[1641098634985,0.25989019,47145.0,47140.0,0.02120829]
[1641098635186,0.08579,47145.0,47140.0,0.02120829]
[1641098635485,0.17410019,47145.0,47140.0,0.02120829]
[1641098635898,0.17410019,47151.0,47143.0,0.00589981]
[1641098636096,0.17410019,47151.0,47146.0,0.02120585]
[1641098636296,0.15012967,47152.0,47146.0,0.02120585]
[1641098636496,0.15012967,47152.0,47143.0,0.02120712]
[1641098637197,0.14033567,47152.0,47143.0,0.02120712]
[1641098637396,0.14033567,47152.0,47145.0,0.316694]
[1641098637597,0.17410019,47150.0,47143.0,0.02120712]
[1641098637997,0.14033567,47152.0,47143.0,0.02120712]
[1641098638297,0.17410019,47145.0,47137.0,0.16154552]
[1641098638500,0.08739,47145.0,47141.0,0.00589981]
[1641098638698,0.08739,47145.0,47142.0,0.0212077]
[1641098639699,0.17410019,47149.0,47142.0,0.0212077]
[1641098640099,0.17410019,47149.0,47145.0,0.06445159]
[1641098641003,0.14033567,47152.0,47145.0,0.06445159]
[1641098641200,0.17410019,47150.0,47147.0,0.02120534]
[1641098641600,0.17410019,47150.0,47145.0,0.06445159]
[1641098641800,0.17410019,47146.0,47145.0,0.06445159]
[1641098642401,0.17410019,47150.0,47145.0,0.06445159]
[1641098642602,0.14033567,47152.0,47145.0,0.06445159]
[1641098642801,0.17410019,47157.0,47150.0,0.02120406]
[1641098643002,0.19530713,47161.0,47150.0,0.02120406]
[1641098643201,0.17410019,47161.0,47153.0,0.00589981]
[1641098643402,0.17410019,47161.0,47158.0,0.001]
[1641098643605,0.17410019,47161.0,47158.0,0.08035]
[1641098644202,0.17410019,47161.0,47159.0,0.0531456]
[1641098644801,0.17410019,47161.0,47159.0,0.0651921]
[1641098645202,0.17410019,47161.0,47159.0,9.21e-05]
[1641098645403,0.14033567,47160.0,47144.0,0.293]
[1641098645602,0.18,47151.0,47144.0,0.293]
[1641098645802,0.17410019,47147.0,47144.0,0.293]
[1641098646305,0.17410019,47147.0,47146.0,0.001]
[1641098646503,0.17410019,47151.0,47146.0,0.001]
[1641098646702,0.17410019,47151.0,47144.0,0.40003527]
[1641098647402,0.17410019,47151.0,47145.0,0.08163925]
[1641098647902,0.17410019,47151.0,47147.0,0.10701138]
[1641098648302,0.17410019,47151.0,47148.0,0.319206]
[1641098648702,0.17410019,47151.0,47145.0,0.08163925]
[1641098648905,0.5861143,47146.0,47145.0,0.08163925]
[1641098649103,0.5861143,47146.0,47145.0,0.08263925]
[1641098649302,0.5861143,47146.0,47145.0,0.15970642]
[1641098649503,0.5861143,47146.0,47145.0,0.08163925]
[1641098650208,0.5861143,47146.0,47145.0,0.08263925]
[1641098650404,0.14031828,47146.0,47145.0,0.08263925]
[1641098650805,0.14031828,47146.0,47145.0,0.10384566]
[1641098651207,0.99009431,47147.0,47145.0,0.10384566]
[1641098651415,0.58474641,47146.0,47145.0,0.10284566]
[1641098651614,0.58474641,47146.0,47145.0,0.10384566]
[1641098654116,0.14031828,47150.0,47145.0,0.10384566]
[1641098654313,0.14031828,47150.0,47145.0,0.10284566]
[1641098655716,1.42921885,47150.0,47146.0,0.320116]
[1641098656116,0.14031828,47149.0,47145.0,0.10284566]
[1641098657018,0.17410019,47146.0,47145.0,0.10284566]
[1641098657217,0.18389419,47146.0,47145.0,0.10284566]
[1641098657619,0.32422986,47146.0,47145.0,0.10284566]
[1641098658119,0.32422986,47146.0,47145.0,0.08163925]
[1641098658820,0.46454814,47146.0,47145.0,0.08163925]
[1641098659123,0.29044795,47146.0,47145.0,0.08163925]
[1641098659920,0.28065395,47146.0,47145.0,0.10284562]
[1641098660120,0.17410019,47148.0,47147.0,0.14354351]
[1641098660320,1.28890057,47150.0,47147.0,0.21645332]
[1641098660519,0.05410019,47148.0,47147.0,0.382224]
[1641098660720,0.17410019,47148.0,47147.0,0.382224]
[1641098661321,0.17410019,47148.0,47147.0,0.06701]
[1641098661522,0.17410019,47148.0,47145.0,0.10284562]
[1641098661523,0.993201,47148.0,47145.0,0.10284562]
[1641098661724,0.993201,47148.0,47145.0,0.24318129]
[1641098662021,0.81910081,47148.0,47146.0,0.319929]
[1641098662221,0.58501043,47147.0,47146.0,0.319929]
[1641098662421,0.75911062,47147.0,47146.0,0.319929]
[1641098662624,0.75911062,47147.0,47145.0,0.24318129]
[1641098663021,0.58501043,47147.0,47146.0,0.32467281]
[1641098663220,0.81910081,47149.0,47146.0,0.32467281]
[1641098663221,0.81910081,47149.0,47147.0,1.45365161]
[1641098663622,0.58514834,47155.0,47148.0,1.58722474]
[1641098663823,0.58514834,47155.0,47150.0,1.11389981]
[1641098664021,0.58514834,47155.0,47154.0,0.001]
[1641098664233,0.58514834,47155.0,47154.0,0.30490862]
[1641098664429,0.58514834,47155.0,47154.0,0.09973362]
[1641098664630,0.75924853,47155.0,47154.0,0.09873362]
[1641098664830,0.17410019,47155.0,47154.0,0.09873362]
[1641098665029,0.17410019,47159.0,47154.0,0.09270862]
[1641098665230,0.009794,47163.0,47154.0,0.09270862]
[1641098665231,0.18,47156.0,47154.0,0.09270862]
[1641098665431,0.17410019,47155.0,47154.0,0.09270862]
[1641098669435,0.11010019,47169.0,47158.0,0.11073908]
[1641098669646,0.02119997,47177.0,47168.0,0.14033567]
[1641098669835,0.11010019,47169.0,47168.0,0.21421567]
[1641098671333,0.11010019,47169.0,47168.0,0.29113562]
[1641098671836,0.11010019,47169.0,47168.0,0.21725562]
[1641098672034,0.13130402,47169.0,47164.0,0.14033567]
[1641098672334,0.11010019,47165.0,47164.0,0.14033567]
[1641098673333,0.11010019,47165.0,47164.0,0.19514296]
[1641098675338,0.44050074,47165.0,47164.0,0.19514296]
[1641098675537,0.51765074,47165.0,47154.0,0.02120205]
[1641098675737,0.51765074,47165.0,47153.0,0.14033567]
[1641098675738,0.11010019,47155.0,47153.0,0.14033567]
[1641098675938,0.17473019,47155.0,47153.0,0.14033567]
[1641098676437,0.17473019,47155.0,47154.0,0.06051546]
[1641098677151,0.31533674,47155.0,47154.0,0.06051546]
[1641098680754,0.28923674,47155.0,47154.0,0.06051546]
[1641098683158,0.28923674,47155.0,47154.0,0.48465169]
[1641098683359,0.28923674,47155.0,47154.0,0.80431869]
[1641098683763,0.28923674,47155.0,47154.0,0.06051546]
[1641098684363,0.28923674,47155.0,47154.0,0.37976746]
[1641098684665,0.14033567,47162.0,47155.0,0.09905987]
[1641098684864,0.18,47161.0,47155.0,0.09905987]
[1641098685064,0.18,47161.0,47156.0,0.319445]
[1641098685266,0.14033567,47162.0,47156.0,0.319445]
[1641098685563,0.14033567,47162.0,47155.0,0.316189]
[1641098685865,0.3513467,47156.0,47154.0,0.06051546]
[1641098687267,0.3513467,47155.0,47154.0,0.06051546]
[1641098687865,0.58557783,47157.0,47154.0,0.06051546]
[1641098688064,0.58557783,47156.0,47154.0,0.06051546]
[1641098688664,0.35091065,47155.0,47154.0,0.06051546]
[1641098689867,0.35091065,47155.0,47154.0,0.13500653]
[1641098690065,0.35091065,47155.0,47154.0,0.45405053]
[1641098690268,0.35091065,47157.0,47154.0,0.45405053]
[1641098691267,0.35091065,47157.0,47155.0,0.01204723]
[1641098691666,0.35091065,47157.0,47156.0,0.319992]
[1641098692268,0.35091065,47157.0,47156.0,0.33203923]
[1641098692473,0.35091065,47157.0,47156.0,0.01204723]
[1641098692869,0.35091065,47157.0,47155.0,0.01204723]
[1641098693569,0.18,47156.0,47155.0,0.01204723]
[1641098693973,0.18,47156.0,47155.0,0.0927237]
[1641098694172,0.35091065,47157.0,47155.0,0.0927237]
[1641098694573,0.35091065,47157.0,47155.0,0.01204723]
[1641098694773,0.35091065,47157.0,47156.0,0.01204723]
[1641098695673,0.53091065,47157.0,47155.0,0.01204723]
[1641098695872,0.53091065,47157.0,47156.0,0.01204723]
[1641098696073,0.35091065,47157.0,47156.0,0.01204723]
[1641098696674,0.35091065,47157.0,47155.0,0.01204723]
[1641098696877,0.58557783,47158.0,47155.0,0.01204723]
[1641098697375,0.58557783,47158.0,47156.0,0.01204723]
[1641098697577,0.35080291,47157.0,47156.0,0.01204723]
[1641098697775,0.35080291,47157.0,47155.0,0.01204723]
[1641098698175,0.35080291,47157.0,47156.0,0.01204723]
[1641098698577,0.35080291,47157.0,47155.0,0.01204723]
[1641098698877,0.35080291,47157.0,47156.0,0.01204723]
[1641098699477,0.35080291,47157.0,47155.0,0.01204723]
[1641098700778,0.35080291,47157.0,47156.0,0.30299804]
[1641098701179,0.35080291,47157.0,47156.0,0.31504527]
[1641098701381,0.35080291,47157.0,47156.0,0.01204723]
[1641098702180,0.35080291,47157.0,47155.0,0.01204723]
[1641098702380,0.35080291,47157.0,47156.0,0.01204723]
[1641098702980,0.35080291,47157.0,47154.0,0.07449107]
[1641098702981,0.35080291,47157.0,47155.0,0.01204723]
[1641098703181,0.35080291,47157.0,47156.0,0.01204723]
[1641098703782,0.35080291,47157.0,47156.0,0.41142648]
[1641098704584,0.35080291,47159.0,47156.0,0.41142648]
[1641098704983,0.35080291,47159.0,47157.0,0.08192725]
[1641098705182,0.35080291,47159.0,47157.0,0.09397448]
[1641098705384,0.35080291,47159.0,47158.0,0.32967123]
[1641098705682,0.58557783,47161.0,47158.0,0.32967123]
[1641098705683,0.15180027,47160.0,47158.0,0.32967123]
[1641098705883,0.15180027,47160.0,47159.0,0.05393469]
[1641098706283,0.15180027,47160.0,47159.0,0.38454392]
[1641098706581,0.15180027,47160.0,47159.0,0.46647117]
[1641098708084,0.58557783,47162.0,47159.0,0.46647117]
[1641098708288,0.58557783,47163.0,47159.0,0.46647117]
[1641098708485,0.58557783,47163.0,47160.0,0.01204723]
[1641098708686,0.58557783,47163.0,47160.0,0.09397448]
[1641098708886,0.58557783,47163.0,47161.0,0.317941]
[1641098709285,0.58557783,47163.0,47162.0,0.01204723]
[1641098709588,0.58557783,47163.0,47162.0,0.33018323]
[1641098709987,0.58557783,47163.0,47162.0,0.01204723]
[1641098710390,0.14046981,47163.0,47162.0,0.01204723]
[1641098710587,0.14046981,47163.0,47160.0,0.01204723]
[1641098710786,0.96027878,47163.0,47160.0,0.01204723]
[1641098710988,0.96027878,47163.0,47162.0,0.01204723]
[1641098711189,0.96027878,47163.0,47161.0,0.01204723]
[1641098711588,0.96027878,47163.0,47162.0,0.01204723]
[1641098711788,0.009794,47165.0,47162.0,0.32990623]
[1641098711990,0.009794,47165.0,47162.0,0.317859]
[1641098712189,0.009794,47165.0,47163.0,0.01204723]
[1641098712391,0.009794,47165.0,47163.0,0.01594823]
[1641098712792,0.18,47164.0,47153.0,0.36281708]
[1641098713093,0.18,47158.0,47153.0,0.36281708]
[1641098713291,0.26449,47158.0,47153.0,0.36281708]
[1641098713490,0.08449,47158.0,47153.0,0.36281708]
[1641098713690,0.08449,47158.0,47154.0,0.317031]
[1641098713892,0.18,47155.0,47152.0,0.14033567]